bitfinex-derivatives/quotes_ETHF0:USTF0_20250817
["timestamp","ask_amount","ask_price","bid_price","bid_amount"]
[1755474706350,0.544,4488.2,4488.1,0.2467]
[1755474706746,0.544,4488.2,4488.1,0.5081]
[1755474706948,0.544,4488.2,4488.1,0.6796]
[1755474707248,0.544,4488.2,4488.1,0.8511]
[1755474707847,0.544,4488.2,4488.1,1.0981]
[1755474708646,0.544,4488.2,4488.1,1.4868]
[1755474708845,0.1,4488.2,4488.1,1.4868]
[1755474710653,3.2078,4488.9,4488.8,0.5964]
[1755474710855,3.75403504,4488.9,4488.8,1.4862]
[1755474711358,4.28583504,4488.9,4488.8,0.2595]
[1755474712049,3.99573504,4488.9,4488.6,0.2595]
[1755474712255,0.2417,4488.5,4488.4,0.838]
[1755474712456,0.5318,4488.5,4488.4,0.838]
[1755474712656,0.5318,4488.5,4488.4,1.2267]
[1755474712955,0.5318,4488.5,4488.4,1.4862]
[1755474713747,0.2901,4488.8,4488.7,0.3402]
[1755474714057,1.07806868,4488.8,4488.7,1.4862]
[1755474715955,0.54626868,4488.8,4488.7,1.4862]
[1755474716156,1.07806868,4488.8,4488.7,1.4862]
[1755474718457,1.07842338,4488.8,4488.7,1.4862]
[1755474718753,1.07842338,4488.8,4487.7,3.2078]
[1755474718961,3.7396,4488.4,4488.3,0.8413]
[1755474719260,4.28622338,4488.4,4488.3,0.8413]
[1755474719965,4.28622338,4488.4,4488.3,1.0975]
[1755474720559,4.28622338,4488.4,4488.3,1.4862]
[1755474720858,3.99612338,4488.4,4487.2,0.2416]
[1755474721065,0.54662338,4488.3,4487.1,3.30808637]
[1755474721267,0.83672338,4488.2,4487.3,0.8898]
[1755474721455,1.07842338,4488.1,4488.0,0.1672]
[1755474721658,1.07842338,4488.1,4488.0,1.0975]
[1755474721963,1.07842338,4488.1,4488.0,1.4862]
[1755474724665,1.07842338,4488.1,4488.0,0.4146]
[1755474724873,0.2417,4487.3,4487.2,0.8559]
[1755474725166,0.5318,4487.3,4487.2,1.4862]
[1755474725365,1.07842338,4487.3,4487.2,1.4862]
[1755474726169,0.5318,4487.3,4487.2,1.4862]
[1755474727071,0.5318,4487.3,4487.2,1.0975]
[1755474727667,0.5318,4487.3,4487.2,1.4862]
[1755474727868,0.2417,4487.3,4487.2,1.4862]
[1755474728178,3.4495,4487.4,4487.3,1.4862]
[1755474728668,3.7396,4487.4,4487.3,1.4862]
[1755474731378,3.4495,4487.4,4487.3,1.4862]
[1755474731975,3.7396,4487.4,4487.3,1.4862]
[1755474736982,3.7396,4487.4,4487.3,1.0975]
[1755474737488,3.7396,4487.4,4487.3,1.4862]
[1755474738584,0.2911,4488.0,4487.4,0.8386]
[1755474738776,3.2078,4488.1,4487.9,0.5607]
[1755474738982,3.2078,4488.1,4488.0,1.3993]
[1755474740284,2.5524,4488.1,4488.0,1.4215]
[1755474740483,3.2078,4488.8,4488.7,0.5607]
[1755474740793,4.0056,4488.8,4488.7,1.3993]
[1755474743388,3.6262,4488.8,4487.7,0.8386]
[1755474743591,0.3794,4488.7,4488.0,0.4832]
[1755474743891,0.7978,4488.2,4488.1,1.3993]
[1755474744191,3.4502,4488.8,4488.1,1.3993]
[1755474744381,0.7978,4488.7,4488.6,0.5607]
[1755474744584,0.7978,4488.7,4488.6,1.3993]
[1755474745289,0.7978,4488.7,4487.5,3.2078]
[1755474745488,0.4184,4487.6,4487.5,3.7685]
[1755474745690,3.2078,4488.2,4487.5,4.6071]
[1755474745885,0.7978,4488.1,4488.0,0.6331]
[1755474746093,1.0402,4488.1,4488.0,0.8766]
[1755474746790,1.0402,4488.1,4488.0,1.0439]
[1755474747187,0.6608,4488.1,4487.5,4.0464]
[1755474747383,1.0402,4487.6,4487.5,0.8079]
[1755474747596,1.0402,4487.3,4487.2,0.8079]
[1755474748286,1.0402,4487.2,4487.1,0.10028637]
[1755474748694,1.0402,4487.2,4487.1,0.50118637]
[1755474748891,1.0402,4487.2,4487.1,0.10028637]
[1755474749591,0.0222,4487.5,4487.1,0.10028637]
[1755474749890,1.0402,4487.2,4487.1,0.10028637]
[1755474752197,1.5780858,4487.2,4487.1,0.10028637]
[1755474753091,1.5780858,4487.2,4487.1,0.58348637]
[1755474754289,1.5780858,4487.2,4487.1,0.10028637]
[1755474755496,0.4184,4486.4,4486.3,0.4832]
[1755474755698,4.248,4486.4,4486.3,0.4832]
[1755474756491,3.6262,4486.4,4485.3,3.2078]
[1755474756696,4.248,4485.9,4485.8,0.8079]
[1755474756996,4.248,4485.9,4483.6,0.8004]
[1755474756997,0.4184,4483.7,4483.6,0.8004]
[1755474757200,4.0056,4483.7,4483.6,1.1558]
[1755474757500,4.248,4483.7,4483.6,1.1558]
[1755474757688,4.248,4483.7,4483.6,1.3993]
[1755474757892,4.0056,4483.7,4483.6,1.3993]
[1755474758494,3.8686,4483.7,4483.2,0.4832]
[1755474758699,1.0402,4483.3,4483.2,0.3247]
[1755474758894,1.0402,4483.3,4483.2,0.5607]
[1755474759100,0.7978,4483.3,4483.2,0.9161]
[1755474759298,0.7978,4483.3,4483.2,1.3993]
[1755474759800,0.7978,4483.3,4482.4,0.44618456]
[1755474759801,0.7978,4483.6,4483.5,0.5607]
[1755474759995,0.7978,4483.6,4483.5,1.3993]
[1755474760798,1.0402,4483.6,4483.5,1.0439]
[1755474761798,0.4184,4483.3,4483.2,1.0439]
[1755474762097,0.4184,4483.3,4483.2,1.3993]
[1755474762403,0.2471,4483.3,4483.2,1.0439]
[1755474762606,0.7978,4483.3,4483.2,1.3993]
[1755474762904,1.0402,4482.5,4482.4,0.44618456]
[1755474763106,4.248,4482.5,4482.4,0.44618456]
[1755474763307,3.6262,4482.5,4482.4,1.07928456]
[1755474763605,4.248,4482.5,4482.4,1.25408456]
[1755474763805,4.248,4482.5,4482.4,1.49008456]
[1755474764000,4.248,4482.5,4482.4,0.44618456]
[1755474765103,4.248,4482.5,4482.4,1.49008456]
[1755474765104,4.0056,4482.5,4482.4,1.49008456]
[1755474765312,4.0056,4482.5,4478.4,0.3554]
[1755474765313,0.2424,4480.8,4478.4,0.3554]
[1755474765507,3.2078,4479.3,4478.4,0.3554]
[1755474765703,3.2078,4479.3,4478.9,9.9999]
[1755474765907,3.2078,4479.3,4477.4,0.4464]
[1755474765908,0.2424,4478.8,4478.0,0.3554]
[1755474766101,0.2424,4478.0,4477.2,0.3554]
[1755474766302,0.4938,4476.9,4475.0,3.2078]
[1755474766501,3.2078,4475.9,4475.2,0.0223]
[1755474766709,3.2078,4475.9,4475.3,0.3554]
[1755474767104,3.2078,4475.9,4475.3,0.3777]
[1755474767307,3.2078,4475.9,4475.5,0.0223]
[1755474767502,3.2078,4476.5,4475.9,0.4832]
[1755474767709,3.2078,4476.5,4475.6,0.8694]
[1755474767915,3.2078,4476.5,4475.5,3.2078]
[1755474768112,3.2078,4476.5,4475.7,0.6137]
[1755474768307,3.2078,4476.0,4475.1,0.5016]
[1755474768613,3.2078,4475.4,4475.2,0.6137]
[1755474768914,3.2078,4475.4,4474.9,0.6137]
[1755474769117,3.2078,4475.4,4474.8,0.3678]
[1755474769414,3.2078,4475.4,4475.0,0.0223]
[1755474769610,3.2078,4476.3,4475.6,0.6235]
[1755474769813,3.2078,4476.8,4475.9,0.94815]
[1755474770012,3.7141,4477.7,4476.5,3.2078]
[1755474770215,0.8771,4476.9,4476.1,0.8694]
[1755474770523,3.2078,4477.0,4476.5,0.3678]
[1755474770716,3.2078,4477.0,4476.7,0.3678]
[1755474771016,3.2078,4477.0,4476.9,0.8694]
[1755474771217,3.2078,4477.0,4476.9,0.8917]
[1755474771416,3.2078,4478.3,4477.3,0.3733]
[1755474771617,3.2078,4478.3,4477.6,0.44638]
[1755474771816,3.2078,4478.3,4477.6,0.6137]
[1755474772015,3.2078,4478.3,4477.8,0.2459]
[1755474772215,3.2078,4478.3,4478.0,0.3733]
[1755474772419,0.3708,4478.2,4478.0,0.6137]
[1755474772622,3.4528,4478.3,4477.4,0.1274]
[1755474772814,0.8771,4478.2,4476.8,0.6137]
[1755474773015,0.3708,4478.1,4476.9,0.6137]
[1755474773212,0.2613,4477.2,4477.0,0.3678]
[1755474773516,3.4691,4477.8,4477.3,0.6137]
[1755474773719,3.2078,4477.8,4477.5,0.7411]
[1755474773917,0.2613,4478.7,4478.3,0.1274]
[1755474774120,3.2078,4478.4,4478.3,0.6137]
[1755474774314,0.2613,4478.3,4477.7,0.3678]
[1755474774514,0.2613,4478.3,4476.8,32.145]
[1755474774515,0.2613,4477.6,4476.9,0.2459]
[1755474774719,3.4691,4477.0,4476.9,0.6137]
[1755474775422,3.4691,4477.0,4476.2,0.1274]
[1755474775423,3.2078,4477.5,4476.6,0.44648]
[1755474775619,0.2613,4476.8,4475.8,1.18766]
[1755474775824,0.2613,4476.8,4475.8,0.57396]
[1755474776025,0.2613,4476.8,4476.0,0.6137]
[1755474776324,0.2613,4476.8,4476.1,0.6137]
[1755474776512,3.2078,4476.2,4476.1,0.6137]
[1755474776715,3.4691,4476.2,4476.1,0.6137]
[1755474776916,3.2078,4476.2,4475.7,0.18767]
[1755474777115,0.2613,4476.7,4476.0,0.44654]
[1755474777320,3.2078,4476.9,4476.3,0.44651]
[1755474777820,3.2078,4476.9,4476.5,0.44649]
[1755474778124,0.2613,4476.8,4476.1,0.44653]
[1755474778620,0.2613,4476.2,4475.2,3.2078]
[1755474778826,0.0223,4476.4,4474.7,3.2078]
[1755474778827,0.2613,4475.6,4474.7,3.2078]
[1755474779014,3.2078,4477.6,4475.5,3.2301]
[1755474779214,3.4528,4478.1,4477.3,0.13]
[1755474779521,3.4528,4478.1,4476.3,1.11627]
[1755474779522,0.8771,4477.4,4476.3,0.13]
[1755474779727,3.4691,4477.1,4476.3,0.13]
[1755474779926,3.2078,4477.3,4476.8,0.57646]
[1755474780221,3.2078,4477.8,4476.5,22.183]
[1755474780419,3.4691,4478.3,4477.1,3.2078]
[1755474780623,3.2078,4478.3,4477.8,0.13]
[1755474780923,3.2078,4478.3,4478.2,0.13]
[1755474781326,3.2078,4478.3,4478.2,3.13]
[1755474783731,0.2613,4479.3,4478.7,0.13]
[1755474784028,0.2613,4479.3,4478.8,0.13]
[1755474784328,0.2613,4479.3,4478.9,0.44625]
[1755474784717,0.2613,4479.3,4479.2,0.13]
[1755474785124,0.2613,4479.3,4479.2,22.284]
[1755474785522,3.2078,4479.4,4479.2,22.154]
[1755474785728,3.2078,4479.4,4479.3,0.13]
[1755474786524,0.2613,4480.4,4479.5,0.13]
[1755474786724,0.2613,4480.4,4479.6,22.149]
[1755474786924,0.2613,4480.3,4479.5,0.13]
[1755474787122,0.2613,4480.3,4479.6,8.2]
[1755474787327,0.2613,4480.3,4479.7,22.138]
[1755474787630,0.0223,4480.2,4479.2,2.7341]
[1755474787827,1.57151056,4483.6,4470.3,8.969]
[1755474787828,0.1337,4479.2,4477.1,0.6235]
[1755474788023,32.153,4481.1,4478.1,0.6235]
[1755474788024,3.2078,4478.3,4478.1,0.6235]
[1755474788224,3.2078,4479.3,4478.3,0.6235]
[1755474788524,3.2078,4480.1,4479.2,0.3678]
[1755474788829,3.2078,4480.1,4479.5,0.3678]
[1755474789028,3.2301,4480.1,4479.7,0.3678]
[1755474789230,3.4914,4480.1,4478.8,3.2078]
[1755474789532,3.2078,4478.9,4478.4,0.6235]
[1755474789828,3.2078,4478.9,4478.3,22.27]
[1755474790225,3.2078,4478.9,4478.5,0.6235]
[1755474790433,3.2078,4478.9,4478.4,0.2459]
[1755474790434,3.2078,4478.9,4478.6,0.8694]
[1755474790626,3.2078,4478.9,4478.3,22.27]
[1755474790828,3.2078,4478.9,4478.8,0.8694]
[1755474793131,3.2078,4479.5,4478.8,0.8694]
[1755474793433,0.53183559,4479.4,4478.8,0.8694]
[1755474793633,0.6321,4479.2,4478.9,0.8694]
[1755474793836,3.2078,4479.0,4478.9,0.8694]
[1755474794632,3.2078,4479.0,4478.9,3.8694]
[1755474794826,3.2078,4479.7,4479.2,0.8694]
[1755474795032,0.53230298,4479.6,4479.4,0.8694]
[1755474795232,0.53230298,4479.5,4479.4,0.8694]
[1755474795537,0.53268948,4479.6,4479.5,0.8694]
[1755474795731,0.53033669,4479.6,4479.3,22.196]
[1755474795931,3.4691,4480.2,4479.3,22.196]
[1755474796130,0.71656855,4480.1,4479.3,22.196]
[1755474796336,3.4691,4480.2,4479.4,0.8694]
[1755474796337,0.53033547,4480.0,4479.4,0.8694]
[1755474796533,0.53033547,4479.9,4479.5,0.3678]
[1755474796733,3.2078,4480.2,4479.8,0.5016]
[1755474796933,0.53026878,4480.1,4480.0,0.8694]
[1755474797436,3.2078,4480.2,4480.1,0.8694]
[1755474798236,3.2078,4480.2,4480.1,23.0334]
[1755474798430,3.2078,4480.2,4480.1,0.2459]
[1755474798626,3.8236,4480.2,4480.1,22.3828]
[1755474798836,0.6158,4480.0,4479.2,0.2368]
[1755474799043,0.6158,4480.0,4479.0,0.6276]
[1755474799044,3.8236,4479.5,4479.4,0.2368]
[1755474799243,3.8236,4479.5,4479.4,22.4028]
[1755474799542,0.8657,4479.4,4479.3,22.162]
[1755474799842,0.3721,4479.2,4479.1,0.2368]
[1755474800044,0.6158,4479.2,4479.1,0.2368]
[1755474800241,0.6158,4479.2,4479.1,0.8644]
[1755474800442,0.5307983,4479.2,4478.6,22.144]
[1755474800649,3.2078,4478.9,4478.8,0.8644]
[1755474802436,3.5799,4478.9,4478.8,0.8644]
[1755474802636,3.8236,4478.9,4478.8,0.4905]
[1755474802842,3.2078,4478.9,4478.8,0.8644]
[1755474803042,0.2437,4479.4,4479.0,0.4905]
[1755474803237,0.52900803,4479.3,4479.1,1.31063]
[1755474803541,3.2078,4479.9,4479.3,0.44621]
[1755474803542,3.4515,4479.9,4479.3,0.44621]
[1755474803741,0.71536059,4479.8,4479.4,22.13]
[1755474803947,0.52916966,4479.7,4479.6,0.4905]
[1755474804146,3.2078,4479.9,4479.7,0.44617]
[1755474804341,3.2078,4479.9,4479.8,0.8644]
[1755474804548,3.2078,4480.5,4479.5,0.8644]
[1755474804745,3.2078,4480.5,4479.4,54.276]
[1755474804746,0.71497588,4480.4,4479.7,0.8644]
[1755474804950,0.52880131,4480.3,4479.7,0.8644]
[1755474805148,0.52880131,4480.2,4479.8,0.44616]
[1755474805351,0.6158,4480.1,4480.0,0.2368]
[1755474805849,0.8657,4480.4,4480.1,0.2537]
[1755474806048,0.52890963,4480.3,4480.1,0.6276]
[1755474806240,0.8657,4480.3,4480.2,0.2368]
[1755474806440,1.58120656,4480.3,4480.2,22.102]
[1755474806950,1.58120643,4480.3,4480.2,22.102]
[1755474807152,1.58155992,4480.3,4480.2,22.102]
[1755474807540,1.33165992,4480.3,4479.8,0.2368]
[1755474807745,0.8657,4480.0,4479.9,22.093]
[1755474807954,3.39415392,4480.0,4479.6,0.2368]
[1755474808253,0.18649577,4479.9,4479.6,22.075]
[1755474808449,0.18649577,4479.8,4479.6,22.075]
[1755474808751,3.2078,4480.0,4479.6,22.075]
[1755474808951,0.18666193,4479.9,4479.7,0.2368]
[1755474809249,0.6158,4480.2,4479.8,0.6276]
[1755474809453,0.71762052,4480.1,4479.9,0.8644]
[1755474809752,0.71762052,4480.0,4479.7,0.44617]
[1755474809946,3.2078,4480.5,4479.7,0.44617]
[1755474810147,0.53088639,4480.4,4479.9,0.44615]
[1755474810342,0.71763152,4480.3,4480.0,0.8644]
[1755474810548,0.8657,4480.1,4479.8,0.2368]
[1755474810842,0.8657,4479.9,4479.8,0.2368]
[1755474811248,0.8657,4479.9,4479.8,0.4905]
[1755474811557,0.2499,4480.4,4479.9,0.44615]
[1755474811852,0.71762447,4480.3,4480.2,0.4905]
[1755474812052,0.71762447,4480.3,4480.2,0.8644]
[1755474812357,0.18674396,4480.3,4480.2,22.9044]
[1755474813655,3.8236,4480.5,4480.3,0.8644]
[1755474813857,0.18673871,4480.4,4480.2,22.04]
[1755474814053,3.2078,4480.5,4480.3,0.44611]
[1755474814352,3.2078,4480.5,4480.4,0.8644]
[1755474815752,0.3721,4480.4,4479.0,0.2537]
[1755474815955,0.3721,4479.6,4479.1,22.2358]
[1755474816147,0.3721,4479.5,4479.2,0.44622]
[1755474816352,0.3721,4479.4,4479.3,0.4905]
[1755474816755,0.3721,4479.4,4479.3,0.8644]
[1755474816957,3.2078,4479.7,4479.1,22.44523]
[1755474817156,0.18667348,4479.6,4479.5,0.4905]
[1755474817456,3.2078,4479.7,4479.6,0.4905]
[1755474817657,3.76657341,4479.7,4479.6,0.4905]
[1755474819352,3.5799,4479.7,4479.6,0.4905]
[1755474819659,3.76656879,4479.7,4479.6,0.4905]
[1755474820760,3.76656879,4479.7,4479.6,0.8644]
[1755474821053,3.39446879,4479.7,4479.6,0.8644]
[1755474821355,3.2078,4480.5,4479.7,0.44617]
[1755474821552,3.5799,4479.9,4479.8,0.4905]
[1755474821754,3.5799,4479.9,4479.8,22.4225]
[1755474823056,3.5799,4479.9,4479.8,22.7964]
[1755474823647,3.8236,4479.9,4479.8,0.4905]
[1755474823960,3.8236,4479.9,4479.3,0.4905]
[1755474823961,3.6604366,4479.9,4479.3,0.4905]
[1755474824155,0.4303366,4479.8,4479.7,21.896]
[1755474824457,0.4303366,4479.8,4478.4,11.4078]
[1755474824458,0.2437,4479.4,4477.6,1.98751593]
[1755474824757,3.8236,4477.9,4476.7,22.193]
[1755474825061,4.03258107,4477.9,4476.7,22.5669]
[1755474825261,4.03258107,4477.9,4476.9,0.2537]
[1755474825460,4.01028107,4477.9,4476.9,0.2537]
[1755474825657,0.3721,4477.7,4477.0,0.2368]
[1755474825859,0.0223,4477.2,4476.7,0.2434]
[1755474826054,0.3721,4476.6,4476.4,0.4905]
[1755474826258,0.0223,4476.5,4475.7,3.48054783]
[1755474826552,32.143,4477.3,4475.7,3.48054783]
[1755474826553,3.2078,4475.8,4475.7,3.71734783]
[1755474826749,3.2078,4476.7,4475.7,3.71734783]
[1755474826954,3.2078,4476.7,4475.7,3.5409]
[1755474826955,0.19418219,4476.6,4475.7,3.5409]
[1755474827255,3.2078,4476.7,4475.7,3.5409]
[1755474827561,3.2078,4476.7,4475.7,0.2368]
[1755474827757,3.2078,4476.7,4475.3,3.2078]
[1755474827961,3.2078,4476.4,4475.4,0.6956]
[1755474828161,3.2078,4476.4,4475.3,3.2301]
[1755474828460,3.2078,4476.4,4475.6,0.8725]
[1755474828956,3.2078,4476.4,4475.3,3.2078]
[1755474828957,3.2078,4476.4,4476.1,0.8725]
[1755474829163,3.2078,4476.4,4476.2,0.3806]
[1755474829364,3.2078,4476.4,4476.3,1.31901]
[1755474829855,3.2078,4476.9,4476.3,0.8725]
[1755474830057,3.2078,4476.9,4476.4,0.4465]
[1755474830257,0.0223,4476.6,4475.3,0.4919]
[1755474830457,0.6227,4476.2,4475.3,0.4919]
[1755474830657,0.2516,4476.2,4475.3,0.4919]
[1755474830858,0.3711,4476.1,4475.3,0.4919]
[1755474831760,0.3711,4475.6,4474.8,0.249]
[1755474831959,0.2516,4475.2,4474.4,22.85598231]
[1755474832257,0.3711,4475.1,4474.4,0.44698231]
[1755474833063,0.3711,4474.5,4474.4,0.44698231]
[1755474833360,0.6227,4474.5,4474.4,0.44698231]
[1755474833559,2.99055586,4474.5,4472.6,3.5759]
[1755474833761,3.2078,4473.4,4472.6,3.5759]
[1755474833963,0.0223,4473.3,4472.6,3.5759]
[1755474834156,3.0,4473.3,4472.0,3.2078]
[1755474834358,3.2078,4473.4,4472.0,22.4658]
[1755474834664,3.2078,4473.3,4472.6,0.2429]
[1755474834860,3.2078,4473.3,4473.1,0.34350025]
[1755474835064,3.2078,4473.3,4473.2,0.2429]
[1755474835264,6.2078,4473.3,4471.3,3.073]
[1755474835561,3.2078,4472.7,4472.0,0.44694]
[1755474835757,3.2078,4472.7,4472.1,0.68982]
[1755474835958,3.2078,4472.7,4472.1,0.2429]
[1755474836161,3.2078,4472.2,4471.6,0.2429]
[1755474836561,3.2078,4472.2,4471.5,0.8725]
[1755474836768,3.2078,4472.2,4471.6,0.2429]
[1755474836960,0.0223,4472.1,4471.6,0.00944414]
[1755474837162,0.2652,4471.6,4470.1,0.249]
[1755474837359,3.2078,4470.5,4469.9,0.00944414]
[1755474837664,3.2078,4471.2,4470.4,3.2078]
[1755474837964,3.2078,4471.8,4471.1,3.2078]
[1755474838267,3.2078,4471.8,4471.0,0.6296]
[1755474838463,3.2078,4472.3,4471.4,0.6296]
[1755474838658,0.2429,4471.4,4470.1,0.249]
[1755474838863,3.2078,4471.3,4470.1,0.249]
[1755474839062,3.2078,4471.3,4470.3,0.2429]
[1755474839259,3.2078,4470.6,4469.1,0.44723]
[1755474839468,3.2078,4470.3,4469.3,0.2429]
[1755474839668,3.2078,4470.3,4469.5,3.2078]
[1755474840263,3.2078,4470.3,4469.4,0.25844414]
[1755474840469,3.2078,4470.3,4469.5,3.65499]
[1755474840661,0.2429,4471.1,4470.0,3.2078]
[1755474840969,3.2078,4471.5,4470.6,0.8725]
[1755474841270,3.2078,4470.7,4469.4,0.00944414]
[1755474841458,3.2078,4470.7,4469.8,0.2429]
[1755474841656,3.2078,4471.2,4470.3,0.69]
[1755474841855,3.2078,4471.2,4470.6,0.2429]
[1755474842261,3.2078,4471.2,4470.8,0.2429]
[1755474842465,3.2078,4471.2,4470.3,23.41344414]
[1755474842670,3.2078,4471.7,4471.3,0.44701]
[1755474842965,3.2078,4471.7,4471.2,0.44701]
[1755474843265,3.2078,4471.7,4470.8,32.2133]
[1755474843266,3.2078,4472.3,4472.2,0.2429]
[1755474843760,0.1,4474.2,4472.7,0.6296]
[1755474843761,3.19835586,4473.4,4472.7,0.6296]
[1755474844068,3.19835586,4473.4,4472.6,1.31938]
[1755474844268,3.19835586,4473.4,4472.7,0.2429]
[1755474844463,3.19835586,4473.4,4472.9,0.4919]
[1755474844664,3.3078,4474.2,4473.5,0.2429]
[1755474844864,0.1,4474.2,4473.9,0.44674]
[1755474845065,3.2078,4474.7,4474.5,0.6296]
[1755474845269,3.2078,4474.7,4474.6,0.8725]
[1755474845568,3.3077,4474.7,4473.9,0.3806]
[1755474845763,3.2078,4474.7,4474.1,0.2429]
[1755474846164,0.0999,4474.5,4474.1,0.2429]
[1755474846463,0.0223,4474.5,4471.2,3.2078]
[1755474846664,0.1222,4473.5,4473.1,0.10060025]
[1755474846866,3.33,4473.2,4473.1,0.10060025]
[1755474847262,6.33,4473.2,4473.1,0.00060025]
[1755474847569,3.33,4473.2,4473.1,0.00060025]
[1755474848070,3.3077,4473.2,4473.1,0.00060025]
[1755474849368,3.3077,4473.2,4473.1,0.24350025]
[1755474849672,3.2078,4473.2,4473.1,0.87310025]
[1755474850370,3.2078,4473.7,4473.2,0.2429]
[1755474850565,3.2078,4473.7,4473.3,0.4919]
[1755474850867,3.2078,4473.7,4473.1,0.00060025]
[1755474851070,3.2078,4473.7,4473.1,0.49250025]
[1755474851370,3.2078,4473.7,4473.1,0.00060025]
[1755474851875,3.2078,4473.7,4473.1,0.49250025]
[1755474852171,3.2078,4474.3,4473.4,0.8725]
[1755474852371,3.2078,4474.3,4473.8,0.2429]
[1755474852572,3.2078,4474.3,4473.9,0.6296]
[1755474852870,3.2078,4474.3,4473.1,3.65522025]
[1755474853071,3.2078,4474.3,4473.6,0.8725]
[1755474853271,3.2078,4475.0,4474.1,3.2078]
[1755474853470,3.2078,4475.0,4474.2,0.8725]
[1755474853670,3.2078,4475.0,4474.3,0.2429]
[1755474854264,3.2078,4475.0,4474.2,0.6296]
[1755474854265,3.2078,4475.0,4474.4,0.8725]
[1755474854473,32.194,4476.3,4474.4,0.2429]
[1755474854474,3.2078,4474.5,4474.4,0.2429]
[1755474855169,3.2078,4475.0,4474.4,0.6296]
[1755474855366,3.2078,4475.0,4474.6,0.6296]
[1755474855566,3.2078,4475.0,4473.9,3.2078]
[1755474855772,3.2078,4475.0,4474.3,0.8725]
[1755474856069,3.2078,4475.0,4474.5,0.8725]
[1755474856269,3.2078,4475.0,4474.0,0.44673]
[1755474856471,3.2078,4475.0,4474.7,0.2429]
[1755474856671,3.2078,4475.0,4474.0,0.44673]
[1755474856873,3.2078,4475.0,4474.2,0.8725]
[1755474857173,3.2078,4475.0,4474.5,0.4919]
[1755474857376,3.2078,4475.0,4474.5,0.8725]
[1755474857573,3.2078,4475.0,4474.2,23.89172]
[1755474857574,3.2078,4475.0,4474.7,0.2429]
[1755474857769,3.2078,4475.0,4474.8,0.615]
[1755474857972,3.2078,4475.0,4474.9,0.8589]
[1755474858374,3.2078,4475.5,4475.0,0.2439]
[1755474858574,3.2078,4475.5,4474.8,0.44666]
[1755474858771,3.2078,4475.5,4474.9,0.8589]
[1755474858973,3.2078,4475.5,4475.0,0.8589]
[1755474859179,3.2078,4475.5,4475.2,0.615]
[1755474859385,3.2078,4475.5,4474.5,3.65449]
[1755474859676,3.2078,4475.5,4475.4,0.8589]
[1755474860477,3.7443288,4475.5,4475.4,0.8589]
[1755474861274,3.2078,4475.5,4475.4,0.8589]
[1755474861479,3.74440327,4475.5,4475.4,0.8589]
[1755474862285,3.2078,4475.5,4475.4,0.8589]
[1755474862878,3.2078,4476.0,4475.0,3.2078]
[1755474863079,3.2078,4476.0,4475.4,0.8589]
[1755474863276,3.2078,4476.0,4475.6,0.8589]
[1755474863485,3.2078,4476.0,4475.8,0.8589]
[1755474863691,3.2078,4476.0,4475.9,0.615]
[1755474863989,3.2078,4476.0,4475.9,0.8589]
[1755474867387,3.2078,4476.0,4474.7,3.3586]
[1755474867388,0.0223,4475.9,4474.7,3.3586]
[1755474867583,0.0223,4475.9,4474.8,0.8589]
[1755474867584,3.2078,4475.4,4474.8,0.8589]
[1755474867780,3.2078,4476.0,4475.1,0.8589]
[1755474868087,3.2301,4476.0,4475.3,0.2439]
[1755474868885,3.2078,4476.0,4475.4,0.615]
[1755474869179,3.2078,4476.0,4475.3,0.8589]
[1755474869381,3.2078,4476.0,4475.4,0.9424]
[1755474869580,3.2078,4476.0,4475.5,0.2439]
[1755474869786,3.2078,4476.0,4475.9,0.3631]
[1755474869993,3.2078,4476.0,4475.9,0.8589]
[1755474872187,3.2078,4476.5,4475.9,0.8589]
[1755474872383,3.2078,4476.5,4476.1,0.615]
[1755474872578,3.2078,4477.0,4476.5,0.2439]
[1755474872780,3.2078,4477.5,4476.7,3.2078]
[1755474872985,3.2078,4478.1,4477.5,0.4958]
[1755474873186,0.19481312,4478.0,4477.7,0.615]
[1755474873484,3.2078,4478.1,4477.4,0.3631]
[1755474873687,3.2078,4478.1,4477.5,0.4958]
[1755474874685,3.2078,4478.1,4477.0,0.4958]
[1755474874686,3.2078,4477.6,4477.0,0.4958]
[1755474874991,3.2301,4477.6,4477.0,0.2439]
[1755474876591,3.2078,4477.1,4477.0,0.2439]
[1755474879998,3.2078,4477.1,4477.0,0.2519]
[1755474880188,3.2078,4477.1,4477.0,0.4958]
[1755474881187,3.2078,4477.1,4477.0,0.8589]
[1755474882291,3.2078,4477.6,4477.0,0.8589]
[1755474882492,0.19542713,4477.5,4477.0,0.3631]
[1755474882696,0.19542713,4477.4,4477.1,0.4958]
[1755474882892,3.2078,4477.6,4477.2,0.2439]
[1755474883095,0.19543646,4477.5,4477.2,0.2439]
[1755474883296,0.19543646,4477.5,4477.1,0.2519]
[1755474883297,0.19543646,4477.4,4477.3,0.2439]
[1755474883589,0.19554323,4477.4,4477.3,0.2439]
[1755474883795,0.19554323,4477.5,4477.2,22.903]
[1755474883991,0.19554323,4477.4,4477.2,22.903]
[1755474884291,0.19554323,4477.3,4477.2,23.1469]
[1755474884493,0.19554323,4477.5,4477.2,22.903]
[1755474884692,0.19554323,4477.4,4477.2,22.903]
[1755474884887,0.19554323,4477.3,4477.2,23.1549]
[1755474885191,3.2078,4477.6,4477.2,23.491]
[1755474885495,0.19563703,4477.5,4477.3,0.2439]
[1755474885691,0.19563703,4477.5,4477.4,0.2439]
[1755474886192,0.19567309,4477.5,4477.2,23.491]